[Event "SVK ECo-C Extraliga 2021-22"]
[Site "Slovakia"]
[Date "2022.06.10"]
[Round "9.5"]
[White "Manik, Mikulas"]
[Black "Hros, Roman"]
[Result "1-0"]
[ECO "B34"]
[WhiteElo "2376"]
[BlackElo "2246"]
[Annotator "TA"]
[PlyCount "55"]
[EventDate "2021.10.21"]
[EventType "team-tourn"]
[EventCountry "SVK"]
[SourceTitle "playchess.com"]
[Source "ChessBase"]
[SourceQuality "1"]
[TimeControl "40/5400+30:1800+30"]

{[%evp 20,55,0,0,0,0,9,14,120,-30,79,82,74,95,75,71,80,86,123,110,123,109,124,105,103,100,129,129,265,264,465,460,656,669,690,643,607,585]} 1. e4 {[%emt 0:00:12]} c5 {[%emt 0:00:13]} 2. Nf3 {[%emt 0:00:05]} Nc6 {[%emt 0:00:08]} 3. Nc3 {[%emt 0:00:11]} g6 {[%emt 0:00:21]} 4. d4 {[%emt 0:00:16]} cxd4 {[%emt 0:00:05]} 5. Nxd4 {[%emt 0:00:04]} Bg7 {[%emt 0:00:09]} 6. Be3 {[%emt 0:00:40]} Nf6 {[%emt 0:00:06]} 7. Nxc6 {[%emt 0:00:11]} bxc6 {[%emt 0:01:36]} 8. e5 {[%emt 0:01:10]} Ng8 {[%emt 0:00:14]} 9. f4 {[%emt 0:00:15]} f6 {[%emt 0:02:24]} 10. Bd4 {[%emt 0:00:09]} Qa5 {[%emt 0:09:59]} 11. Qd2 $1 {[%emt 0:00:18][%mdl 4] now scores much better than the old 11.Qe2.} fxe5 {[%emt 0:04:48] B34: Sicilian: Accelerated Dragon with 5 Nc3: sidelines.} 12. fxe5 {[%emt 0:00:07][%cal Oe5e6]} Rb8 {[%emt 0:09:26]} 13. Bc4 {[%emt 0:02:53][%cal Oe5e6]} Bxe5 {[%emt 0:27:03] [#]} (13... Rxb2 $11 {remains equal.} 14. Ne4 Qxd2+ 15. Kxd2 Rb4) 14. Qg5 {[%emt 0:00:22]} (14. O-O-O $1 $16) 14... d6 {[%emt 0:02:17]} (14... Rb5 $1 $11 15. O-O-O Bf6) 15. Bxe5 $16 {[%emt 0:00:33]} Qxe5+ {[%emt 0:00:47]} 16. Qxe5 {[%emt 0:00:06]} dxe5 {[%emt 0:00:08]} 17. O-O-O $36 {[%emt 0:02:59][%mdl 2048] Keeping Black busy.} Nf6 {[%emt 0:10:55]} 18. Rhe1 {[%emt 0:02:47][%mdl 1024] [#] White has strong compensation.} Rb4 $146 {[%emt 0:12:29]} ({Predecessor:} 18... Nd7 19. Be6 Rf8 20. Ne4 Nf6 21. Nc5 Rb5 22. b4 Rxc5 23. Bxc8 Rb5 24. a3 a5 {1-0 (37) Ekdyshman,M (2369)-Seidl,S (2209) Pardubice 2014}) 19. b3 {[%emt 0:04:12]} Nd7 {[%emt 0:02:20]} 20. a3 {[%emt 0:02:52]} Rb7 21. Be6 {[%emt 0:01:59]} Rf8 {[%emt 0:04:44]} 22. Ne4 {[%emt 0:01:24] Prevents Rf6.} h6 {[%emt 0:04:40]} 23. Rd3 {[%emt 0:07:50] aiming for Red1. 0x0.001e62eb5d16dp-1022s more active pieces.} Rf4 {[%emt 0:01:10] Black cannot hold the game after this.} (23... Rc7 $16) 24. g3 $18 {[%emt 0:08:10]} Rf8 {[%emt 0:00:37]} (24... Rxe4 25. Rxe4 Nc5 26. Bxc8 Rc7 27. Bd7+ (27. Rxe5 Nxd3+ 28. cxd3 Rxc8 $14) 27... Nxd7) 25. Red1 {[%emt 0:00:12] White is clearly winning.} c5 {[%emt 0:05:35]} (25... Rf6 $142) 26. Nxc5 {[%emt 0:00:36][%mdl 64] [#] Pin} Rc7 {[%emt 0:00:29]} 27. Bxd7+ {[%emt 0:01:12]} Bxd7 {[%emt 0:00:07]} 28. Rxd7 {[%emt 0:00:13] Weighted Error Value: White=0.20 (precise) /Black=0.61} 1-0

[Event "SVK ECo-C Extraliga 2021-22"]
[Site "Slovakia"]
[Date "2022.06.10"]
[Round "9.5"]
[White "Krak, Tomas"]
[Black "Varga, Lukas"]
[Result "1/2-1/2"]
[ECO "E92"]
[WhiteElo "2306"]
[BlackElo "2136"]
[Annotator "TA"]
[PlyCount "115"]
[EventDate "2021.10.21"]
[EventType "team-tourn"]
[EventCountry "SVK"]
[SourceTitle "playchess.com"]
[Source "ChessBase"]
[SourceQuality "1"]
[TimeControl "40/5400+30:1800+30"]

{[%evp 26,115,20,26,12,0,0,1,86,76,82,24,22,23,129,120,115,127,207,209,194,51,42,33,37,28,37,39,35,34,35,29,33,0,1,0,0,0,0,0,0,0,12,9,8,8,18,0,0,0,0,-4,0,-1,35,33,34,36,37,30,57,50,108,102,71,31,31,34,75,17,22,10,8,8,8,0,0,0,5,0,0,0,0,0,0,0,0,0,0,-8,0,0]} 1. Nf3 Nf6 2. c4 g6 3. Nc3 Bg7 4. e4 O-O 5. d4 d6 6. Be2 e5 7. d5 a5 8. O-O Na6 9. Bg5 h6 10. Bh4 Qe8 11. Nd2 Bd7 12. b3 Nh7 13. a3 h5 14. f3 {[%cal Bf2f3,Bf3e4][%mdl 32]} f5 {E92: King's Indian: Classical: 6 Be2 e5: 7 dxe5, 7 Be3 and Petrosian System without 7...Nbd7.} 15. exf5 gxf5 16. Qc2 {[#]} e4 $146 (16... Nf6 $11 {remains equal.}) ({Predecessor:} 16... Bh6 17. Kh1 Kh8 18. Bf2 Qg6 19. Rg1 Rg8 20. Rab1 Nf6 21. Nf1 h4 22. Bxh4 Nh5 {1-0 (43) Sivuk,V (2512)-Docena,J (2319) Olongapo City 2015}) 17. fxe4 $16 Nc5 18. Rae1 (18. Rac1 $16) 18... Qe5 $11 19. Nb5 {[%cal Bc3b5,Bb5c7,Bc7e6][%mdl 32]} c6 (19... fxe4 20. Nxc7 Rxf1+ 21. Rxf1 $16 (21. Bxf1 Rf8 $14)) (19... Bxb5 $11 20. cxb5 fxe4) 20. Nc7 $16 Rac8 {[#]} 21. Ne6 {Active counter play!} Nxe6 (21... Bxe6 $16 22. dxe6 fxe4) 22. dxe6 $18 Bxe6 {[#]} 23. Nf3 ({Don't do} 23. Bxh5 fxe4 24. Qxe4 Rxf1+ 25. Rxf1 Rf8 $16) ({White should play} 23. Bd3 $1 $18 {[%cal Re4f5]} Bd7 24. Nf3 (24. exf5 Qd4+ 25. Bf2 Qc3 $16) 24... Qc5+ 25. Bf2 Qxa3 26. e5 (26. exf5 Qb2 $16) 26... dxe5 27. Nxe5 Bxe5 28. Rxe5) 23... Qc3 $14 24. Bd3 {And now Qb1 would win.} fxe4 {Threatens to win with ...d5.} 25. Bxe4 Qxc2 26. Bxc2 Bf5 27. Bxf5 Rxf5 28. Rd1 (28. Re7 {seems wilder.} b5 29. cxb5 cxb5 30. Rb1) 28... Bf8 29. Rd3 d5 30. cxd5 Rxd5 31. Rxd5 cxd5 32. a4 Rc3 33. Rd1 Bc5+ 34. Kf1 Rxb3 35. Rxd5 Rb1+ 36. Ke2 Rb2+ 37. Kd3 b6 38. g3 Rb3+ 39. Ke4 Nf8 40. Rg5+ Kf7 41. Ne5+ Ke6 42. Nd3 Ra3 43. Re5+ ({Don't play} 43. Rxh5 Rxa4+ 44. Kf3 Bd6 $11) 43... Kd7 (43... Kf7 $14) 44. Nxc5+ $16 bxc5 45. Rxc5 Rxa4+ {[%mdl 4096] Endgame KRB-KRN} 46. Kf5 Kd6 47. Rc2 (47. Re5 $16 {Strongly threatening Be7+.} Nd7 48. Be7+ Kc7 49. Re3) 47... Rd4 $11 {The position is equal.} 48. Bf6 Rd5+ 49. Ke4 {[%cal Of6e7]} Rb5 $1 50. Rd2+ Ke6 51. Bd4 Rb4 52. Rc2 Kd6 {Hoping for ...Ne6.} 53. Kd3 {aiming for Bc5+.} Ne6 {Against Bc5+} 54. Bc3 Nc5+ 55. Ke3 Re4+ 56. Kf3 Ra4 57. Rd2+ Ke6 58. Re2+ {Weighted Error Value: White=0.15 (very precise) /Black=0.14 (very precise)} 1/2-1/2

[Event "SVK ECo-C Extraliga 2021-22"]
[Site "Slovakia"]
[Date "2022.06.10"]
[Round "9.6"]
[White "Briestensky, Rastislav"]
[Black "Czebe, Attila"]
[Result "0-1"]
[ECO "B30"]
[WhiteElo "2312"]
[BlackElo "2366"]
[Annotator "TA"]
[PlyCount "52"]
[EventDate "2021.10.21"]
[EventType "team-tourn"]
[EventCountry "SVK"]
[SourceTitle "playchess.com"]
[Source "ChessBase"]
[SourceQuality "1"]
[TimeControl "40/5400+30:1800+30"]

{[%evp 9,52,35,52,44,43,38,33,27,27,27,37,33,56,14,21,7,0,-2,23,0,0,-19,-22,0,4,-36,-31,-105,-74,-515,-516,-501,-516,-500,-503,-687,-695,-630,-456,-456,-440,-941,-947,-1030,-999]} 1. e4 {[%emt 0:00:04]} c5 {[%emt 0:00:48]} 2. Nf3 {[%emt 0:00:07]} Nc6 {[%emt 0:00:03]} 3. Bb5 {[%emt 0:00:31]} e6 {[%emt 0:01:21]} 4. O-O {[%emt 0:00:14]} Nd4 {[%emt 0:03:09]} 5. Nxd4 {[%emt 0:00:12]} cxd4 {[%emt 0:00:03]} 6. c3 {[%emt 0:00:23] B30: Sicilian: 2...Nc6 3 Bb5, lines without ...g6.} Bc5 {[%emt 0:01:16]} 7. b4 {[%emt 0:06:08]} Bb6 {[%emt 0:02:20] [#]} 8. a4 $146 {[%emt 0:03:32][%cal Ba2a4,Ba4a5][%mdl 32] White is slightly better.} ({Predecessor:} 8. Bb2 Nf6 9. Qf3 O-O 10. cxd4 d5 11. e5 Ne8 12. a4 a6 13. Bd3 Bd7 14. a5 {1-0 (41) Goryachkina,A (2592)-Shtyka,S (2175) Chess.com INT 2020}) 8... a6 {[%emt 0:15:13]} 9. Bd3 {[%emt 0:03:52]} Ne7 {[%emt 0:00:58]} 10. Na3 {[%emt 0:01:00]} O-O {[%emt 0:00:58]} 11. a5 {[%emt 0:01:40]} Ba7 {[%emt 0:00:30]} 12. c4 {[%emt 0:04:51]} e5 {[%emt 0:00:54]} 13. c5 {[%emt 0:00:51]} d6 {[%emt 0:00:06]} 14. cxd6 {[%emt 0:00:34]} Ng6 {[%emt 0:02:18]} 15. Bc4 {[%emt 0:10:49]} d3 {[%emt 0:02:03]} 16. Bxd3 {[%emt 0:06:51]} Qxd6 {[%emt 0:00:13]} 17. Bc4 {[%emt 0:02:19]} Qxb4 {[%emt 0:10:49]} 18. Qb3 {[%emt 0:11:55]} ({White should play} 18. Ra2 $1 $15) 18... Qxa5 $17 {[%emt 0:02:47]} 19. Nb5 $2 {[%emt 0:00:06][%mdl 8192] Prevents Qc7. Loses the game.} Qxa1 $19 {Black is clearly winning.} 20. Ba3 {[%emt 0:10:27] [#]} axb5 $1 {[%emt 0:10:51]} 21. Rxa1 {[%emt 0:02:51]} bxc4 {[%emt 0:00:07]} 22. Qb4 {[%emt 0:02:09]} Bd4 {[%emt 0:00:44]} 23. Rc1 {[%emt 0:00:47]} Bd7 {[%emt 0:01:15]} 24. Rxc4 {[%emt 0:00:59]} Nf4 {[%emt 0:00:44]} 25. Rc7 {[%emt 0:01:35]} (25. Rxd4 $142 Ne2+ 26. Kf1 Nxd4 27. Bb2) 25... Bc6 {[%emt 0:01:20]} 26. Qb3 {[%emt 0:00:22]} Ne6 {[%emt 0:00:35] Weighted Error Value: White=0.75/Black=0.11 (very precise)} 0-1

[Event "SVK ECo-C Extraliga 2021-22"]
[Site "Slovakia"]
[Date "2022.06.10"]
[Round "9.6"]
[White "Jozefek, Michal"]
[Black "Pacher, Milan"]
[Result "1-0"]
[ECO "A31"]
[WhiteElo "2201"]
[BlackElo "2394"]
[Annotator "TA"]
[PlyCount "79"]
[EventDate "2021.10.21"]
[EventType "team-tourn"]
[EventCountry "SVK"]
[SourceTitle "playchess.com"]
[Source "ChessBase"]
[SourceQuality "1"]
[TimeControl "40/5400+30:1800+30"]

{[%evp 9,79,-8,37,41,38,20,49,0,33,32,31,22,56,57,44,55,63,0,0,-25,-17,-12,-13,-29,-18,-5,-20,-20,-13,-135,-79,-87,-64,-472,-414,-458,-439,-709,-384,-617,-603,-577,-130,-247,-124,-241,387,388,1398,383,380,361,409,409,685,656,1577,1547,1923,2010,2505,2404,1220,2298,29981,29983,29982,29983,29986,29987,29990,29991]} 1. d4 {[%emt 0:00:13]} Nf6 {[%emt 0:00:02]} 2. c4 {[%emt 0:00:09]} c5 {[%emt 0:00:15]} 3. Nf3 {[%emt 0:01:00]} cxd4 {[%emt 0:00:04]} 4. Nxd4 {[%emt 0:00:06]} e5 {[%emt 0:00:09]} 5. Nc2 {[%emt 0:04:12]} b5 {[%emt 0:00:21]} 6. cxb5 {[%emt 0:08:35] A31: Symmetrical English: 2 Nf3 Nf6 3 d4.} d5 {[%emt 0:00:04]} 7. Bg5 {[%emt 0:06:17]} Bb7 {[%emt 0:01:40] [#]} 8. e4 $146 {[%emt 0:04:03]} (8. e3 $14) ({Predecessor:} 8. e3 Nbd7 9. Be2 Rc8 10. O-O h6 11. Bh4 g5 12. Bg3 h5 13. f4 gxf4 14. exf4 {0-1 (28) Dobrotka,M (2259)-Kozul,Z (2602) Skopje 2012}) 8... d4 {[%emt 0:01:45]} (8... Bc5 $5 {[%cal Rc5f2]}) 9. Bd3 {[%emt 0:01:27]} Nbd7 {[%emt 0:00:20]} 10. b4 {[%emt 0:01:08] Against Nc5} Be7 {[%emt 0:03:20]} 11. Qe2 {[%emt 0:02:06]} O-O {[%emt 0:01:11]} 12. O-O {[%emt 0:00:26]} Rc8 {[%emt 0:00:18]} 13. Nd2 {[%emt 0:03:00]} ({Better is} 13. a4 $14) 13... Rc3 $11 {[%emt 0:01:10]} 14. f3 {[%emt 0:04:51]} Nh5 {[%emt 0:05:30]} 15. Bxe7 {[%emt 0:01:53]} Qxe7 {[%emt 0:00:03]} 16. g3 {[%emt 0:00:47] Prevents Nf4.} Rfc8 $36 {[%emt 0:00:41][%mdl 3072] Black has compensation. White is under pressure.} (16... Qg5 {seems wilder.} 17. Kf2 Rfc8 18. Ne1 Qe7) 17. Nb1 {[%emt 0:16:35]} R3c7 {[%emt 0:00:05]} 18. a4 {[%emt 0:10:45]} Qg5 {[%emt 0:01:09] next ...Nf4 is good for Black.} 19. Ra2 {[%emt 0:02:33]} (19. Qg2 $11) 19... Nf4 $1 $17 {[%emt 0:04:39]} 20. Qd2 {[%emt 0:00:19]} h6 {[%emt 0:01:02] aiming for ...Nf6.} 21. Kh1 $2 {[%emt 0:08:54][%mdl 8192]} (21. Nxd4 $1 $15 Nxd3 22. Nc6) 21... Nxd3 $19 {[%emt 0:00:38]} 22. Qxd3 {[%emt 0:00:01]} f5 {[%emt 0:00:25] Hoping for ...fxe4.} 23. exf5 {[%emt 0:01:21]} (23. Ne1 $142 fxe4 24. fxe4) 23... e4 {[%emt 0:02:17]} 24. Qb3+ {[%emt 0:04:55]} (24. fxe4 Nf6 25. Re1 Nxe4) (24. Qxd4 exf3 25. Ne1) 24... Kh8 {[%emt 0:00:05]} 25. Nxd4 {[%emt 0:02:52] [#]} exf3 $2 {[%emt 0:00:07]} (25... Rc1 $1 $19 {[%cal Rc1f1]} 26. Nd2 exf3) 26. Raf2 {[%emt 0:01:54]} (26. Nxf3 $2 Ne5 27. Nbd2 Rc3 $19) (26. Nc6 $17) 26... Ne5 {[%emt 0:03:17]} ({Black should play} 26... Rc1 $19 27. Nc6 (27. Nxf3 $2 Ne5 $19) 27... Rxf1+ 28. Rxf1 Qxf5 29. Qxf3 (29. Rxf3 Rxc6 30. bxc6 Bxc6 $11) 29... Qc2) 27. Ne6 {[%emt 0:06:44] [#]} ({Don't go for} 27. Nxf3 $2 Nxf3 28. Rxf3 Rc1 29. Rxc1 Bxf3+ 30. Qxf3 Rxc1+ 31. Kg2 Rxb1 $19) (27. Nc6 $17 {was the only defense.} Nxc6 28. bxc6 Rxc6 29. Nd2 (29. Qxf3 $2 Rb6 $19)) 27... Rc1 $4 {[%emt 0:03:48][%mdl 8192]} 28. Nxg5 $18 {[%emt 0:04:38]} Rxf1+ {[%emt 0:00:05]} 29. Rxf1 {[%emt 0:00:02]} f2+ {[%emt 0:00:05] [#]} 30. Nf3 $1 {[%emt 0:00:06]} Nxf3 {[%emt 0:00:58]} (30... Bxf3+ 31. Qxf3) 31. Qf7 {[%emt 0:02:36]} Ba8 {[%emt 0:01:03]} (31... Rb8 $142 32. Rxf2 Ne5+ 33. Qxb7 Rxb7) 32. Qxa7 {[%emt 0:00:23] Black must now prevent Kg2.} Be4 {[%emt 0:09:07][%cal Rf3d4]} 33. Kg2 {[%emt 0:00:59][%cal Bh1g2,Bg2f1,Bf1e2,Be2e3,Be3d4][%mdl 32]} Rc2 {[%emt 0:00:47]} 34. Rxf2 {[%emt 0:00:56]} Ng5+ {[%emt 0:00:36]} 35. Kf1 {[%emt 0:00:14]} Rc1+ {[%emt 0:00:05]} 36. Ke2 {[%emt 0:00:04]} Rxb1 {[%emt 0:00:04]} 37. f6 {[%emt 0:00:23] White mates.} gxf6 {[%emt 0:00:21]} 38. Rxf6 {[%emt 0:00:11][%cal Rf6f8]} Bf3+ {[%emt 0:00:36]} 39. Ke3 {[%emt 0:00:15][%cal Rf6f8]} Rb3+ {[%emt 0:00:11]} 40. Kd4 {[%emt 0:00:26] Weighted Error Value: White=0.63/Black=0.88} 1-0

[Event "SVK ECo-C Extraliga 2021-22"]
[Site "Slovakia"]
[Date "2022.06.10"]
[Round "9.6"]
[White "Nadzamova, Viktoria"]
[Black "Sepesi, Samuel"]
[Result "1/2-1/2"]
[ECO "A45"]
[WhiteElo "2101"]
[BlackElo "2137"]
[Annotator "TA"]
[PlyCount "90"]
[EventDate "2021.10.21"]
[EventType "team-tourn"]
[EventCountry "SVK"]
[SourceTitle "playchess.com"]
[Source "ChessBase"]
[SourceQuality "1"]
[TimeControl "40/5400+30:1800+30"]

{[%evp 9,90,0,4,-35,-13,-35,-25,-33,-15,-27,-21,-69,-36,-32,-22,-27,-28,-16,-23,-21,-18,-7,-16,-24,-41,-23,-10,-10,-35,-66,-27,-27,0,-78,-57,-127,-119,-129,-128,-119,-33,-23,-39,-86,-40,-54,-57,-58,3,8,8,8,8,8,2,0,249,237,245,238,238,231,231,108,108,108,108,108,222,145,144,64,54,70,100,100,100,10,11,12,14,0,8]} 1. d4 {[%emt 0:00:05]} Nf6 {[%emt 0:00:13]} 2. Nc3 {[%emt 0:00:17]} d5 {[%emt 0:00:15]} 3. Bf4 {[%emt 0:00:17]} g6 {[%emt 0:01:32]} 4. e3 {[%emt 0:01:42]} Bg7 {[%emt 0:01:20]} 5. Be2 {[%emt 0:04:35]} O-O {[%emt 0:04:41]} 6. h4 {[%emt 0:05:30] D00: 1 d4 d5: Unusual lines.} c5 {[%emt 0:07:27]} 7. Nf3 {[%emt 0:16:52]} Nc6 {[%emt 0:00:58]} 8. Ne5 {[%emt 0:10:48] Black has an edge.} Qb6 {[%emt 0:10:12][%csl LRb2,LRd4]} 9. Nxc6 {[%emt 0:07:02] [#]} bxc6 $146 {[%emt 0:04:20]} ({Predecessor:} 9... Qxc6 10. h5 a6 11. Bf3 Rd8 12. hxg6 hxg6 13. Be5 Be6 14. Ne2 Bf5 15. c3 Be4 {½-½ (27) Todor,R (2215)-Schmid,T (2172) Austria 2008}) 10. Rb1 {[%emt 0:07:19]} (10. Na4 $1 $11 Qa5+ 11. c3) 10... Nd7 {[%emt 0:13:20][%cal Rc5d4]} 11. Na4 {[%emt 0:05:30]} Qa5+ {[%emt 0:00:19]} 12. c3 {[%emt 0:01:28]} cxd4 {[%emt 0:11:16]} 13. b4 {[%emt 0:01:49]} Qd8 {[%emt 0:00:19]} 14. cxd4 {[%emt 0:00:44]} e5 {[%emt 0:02:44]} 15. dxe5 {[%emt 0:03:15]} Nxe5 {[%emt 0:00:29]} 16. Nc5 {[%emt 0:01:23]} Bf5 {[%emt 0:13:42]} 17. Rc1 {[%emt 0:02:54]} Qb6 $36 {[%emt 0:02:53][%mdl 2048] Black fights for an advantage.} 18. a3 {[%emt 0:05:43]} a5 {[%emt 0:06:04]} 19. Na4 {[%emt 0:06:04]} Qb7 {[%emt 0:01:42]} 20. Nc5 {[%emt 0:01:03]} Qb6 {[%emt 0:00:37]} (20... Qe7 $11) 21. Na4 $17 {[%emt 0:02:32]} Qa7 {[%emt 0:07:08]} 22. b5 {[%emt 0:02:36]} ({White should play} 22. Nc5 $1 $15) 22... cxb5 {[%emt 0:00:13]} 23. Bxb5 {[%emt 0:00:29]} Rab8 {[%emt 0:03:41]} 24. Be2 {[%emt 0:01:18]} Qe7 {[%emt 0:03:14]} (24... Rfd8 $1 $17 {Threatens to win with ...d4.} 25. O-O d4) 25. O-O $15 {[%emt 0:05:16]} Qxa3 {[%emt 0:01:19][%cal Oe5d3]} 26. Nc3 {[%emt 0:03:42]} (26. h5 $15 {might be stronger.}) 26... Rfd8 {[%emt 0:01:08]} (26... Rfc8 $1 $17 {[%cal Rc8c3]} 27. Nxd5 Rd8) 27. Nb5 {[%emt 0:00:10]} Qb4 {[%emt 0:00:44]} 28. Nd4 {[%emt 0:00:18]} Rbc8 {[%emt 0:01:56]} (28... Bd7 $15) 29. Nxf5 $11 {[%emt 0:01:53]} Rxc1 {[%emt 0:00:32]} 30. Qxc1 {[%emt 0:00:12]} gxf5 {[%emt 0:00:12]} 31. Qc7 {[%emt 0:02:00][%csl LRd8,LRe5]} Re8 {[%emt 0:00:54]} 32. g3 {[%emt 0:01:08]} Nc4 $2 {[%emt 0:00:29]} (32... a4 $11 {and Black is okay.}) 33. Qd7 $18 {[%emt 0:00:18][%csl LRd5,LRe8,LRf5]} Qe7 {[%emt 0:00:35]} 34. Qxd5 {[%emt 0:00:18]} Ne5 {[%emt 0:00:29]} 35. Qxa5 {[%emt 0:00:14]} Qb7 {[%emt 0:00:30]} 36. f3 {[%emt 0:00:56]} (36. Rd1 $18) 36... Ra8 $16 {[%emt 0:00:26]} 37. Qb5 Qxb5 {[%emt 0:00:35]} 38. Bxb5 {[%emt 0:00:48]} Rb8 {[%emt 0:00:30]} (38... Ng6 $16 {is a better defense.} 39. Kg2 Nxf4+ 40. exf4 (40. gxf4 Ra3 $16) 40... Ra2+ 41. Kh3 Ra3) 39. Be2 {[%emt 0:00:28]} Rb2 {[%emt 0:00:20] [#]} 40. Rf2 {[%emt 0:00:39]} ({Better is} 40. Rc1 $1 $16 {And now Rc8+ would win.} f6 (40... Ng6 41. Rc8+) 41. Rc8+ Kf7 42. Rc7+ Kg6 {[#]} 43. g4 $1) 40... Ng6 $14 {[%emt 0:00:37]} 41. Bd6 {[%emt 0:05:54]} f4 {[%emt 0:18:31]} 42. gxf4 {[%emt 0:14:56]} Nxh4 {[%emt 0:00:42]} 43. Bc5 {[%emt 0:04:25] A strong pair of Bishops.} (43. Bd3 $16) 43... Rc2 $11 {[%emt 0:05:54] The position is equal.} 44. Bb6 {[%emt 0:01:03]} Rb2 {[%emt 0:01:08]} 45. Bc5 {[%emt 0:01:21] White wants to play Bd3.} Rc2 {[%emt 0:01:51] Black escapes into a draw.  Weighted Error Value: White=0.22 (precise) /Black=0.28 (precise)} 1/2-1/2